[Event "Late-Titled-Tuesday-Blitz-September-05-2023"]
[Site "Chess.com"]
[Date "2023.09.05"]
[Round "2"]
[White "Valio_M1948"]
[Black "rezamahdavi2008"]
[Result "0-1"]
[WhiteElo "2513"]
[BlackElo "2752"]
[TimeControl "180+1"]
[EndTime "14:19:02 PDT"]
[Termination "rezamahdavi2008 won on time"]

1. d4 {[%clk 0:03:00.9]} 1... Nf6 {[%clk 0:02:52.9]} 2. Bg5 {[%clk 0:03:01.4]}
2... e6 {[%clk 0:02:48.3]} 3. e4 {[%clk 0:03:00.9]} 3... h6 {[%clk 0:02:40.9]}
4. Bxf6 {[%clk 0:02:58.2]} 4... Qxf6 {[%clk 0:02:41.8]} 5. c3 {[%clk 0:02:57.5]}
5... d6 {[%clk 0:02:40.4]} 6. Bd3 {[%clk 0:02:57.5]} 6... e5 {[%clk 0:02:40.7]}
7. Ne2 {[%clk 0:02:57.6]} 7... g6 {[%clk 0:02:41]} 8. O-O {[%clk 0:02:57.7]}
8... Bg7 {[%clk 0:02:41.3]} 9. f4 {[%clk 0:02:55.6]} 9... Qe7 {[%clk 0:02:41.9]}
10. Nd2 {[%clk 0:02:51.9]} 10... O-O {[%clk 0:02:39.2]} 11. Nf3 {[%clk
0:02:50.5]} 11... c5 {[%clk 0:02:38.9]} 12. Qd2 {[%clk 0:02:29.6]} 12... cxd4
{[%clk 0:02:35.8]} 13. cxd4 {[%clk 0:02:30.3]} 13... Bg4 {[%clk 0:02:35.4]} 14.
fxe5 {[%clk 0:02:12.5]} 14... dxe5 {[%clk 0:01:53.4]} 15. Nxe5 {[%clk
0:02:12.2]} 15... Bxe5 {[%clk 0:01:53.5]} 16. dxe5 {[%clk 0:02:12.4]} 16... Bxe2
{[%clk 0:01:53.4]} 17. Bxe2 {[%clk 0:02:09.2]} 17... Qxe5 {[%clk 0:01:42.2]} 18.
Qxh6 {[%clk 0:02:02.6]} 18... Nc6 {[%clk 0:01:33]} 19. Kh1 {[%clk 0:01:27.3]}
19... Qxb2 {[%clk 0:01:26.6]} 20. Bc4 {[%clk 0:01:20]} 20... Qg7 {[%clk
0:01:18.5]} 21. Qg5 {[%clk 0:01:16.7]} 21... Rae8 {[%clk 0:01:08.2]} 22. Bd5
{[%clk 0:01:14.1]} 22... Re5 {[%clk 0:00:55.3]} 23. Qg3 {[%clk 0:01:05]} 23...
Re7 {[%clk 0:00:40.9]} 24. Rab1 {[%clk 0:01:00.9]} 24... Nd8 {[%clk 0:00:36.5]}
25. Qd6 {[%clk 0:00:46.9]} 25... Rfe8 {[%clk 0:00:35.8]} 26. Rf2 {[%clk
0:00:28.9]} 26... b6 {[%clk 0:00:28.6]} 27. Rbf1 {[%clk 0:00:28.3]} 27... Kh7
{[%clk 0:00:19.4]} 28. Rf3 {[%clk 0:00:24.4]} 28... Qe5 {[%clk 0:00:17.9]} 29.
Qxe5 {[%clk 0:00:20.4]} 29... Rxe5 {[%clk 0:00:18.8]} 30. Bxf7 {[%clk 0:00:21]}
30... R8e7 {[%clk 0:00:18.2]} 31. Bd5 {[%clk 0:00:20.4]} 31... Ne6 {[%clk
0:00:16.6]} 32. Rf7+ {[%clk 0:00:18.4]} 32... Ng7 {[%clk 0:00:13]} 33. R7f6
{[%clk 0:00:15.2]} 33... Nh5 {[%clk 0:00:12.4]} 34. Rd6 {[%clk 0:00:14.3]} 34...
Kg7 {[%clk 0:00:11.7]} 35. g3 {[%clk 0:00:13.1]} 35... Kh6 {[%clk 0:00:11]} 36.
Bf7 {[%clk 0:00:11.3]} 36... Rg5 {[%clk 0:00:09]} 37. Bd5 {[%clk 0:00:04.2]}
37... Ng7 {[%clk 0:00:05.8]} 38. Rc6 {[%clk 0:00:02.9]} 38... Ne8 {[%clk
0:00:06.3]} 39. Rc8 {[%clk 0:00:01.7]} 39... Nc7 {[%clk 0:00:03.3]} 40. Rh8+
{[%clk 0:00:01.2]} 40... Kg7 {[%clk 0:00:03.9]} 41. Rg8+ {[%clk 0:00:01.9]}
41... Kh7 {[%clk 0:00:04.7]} 42. Rff8 {[%clk 0:00:02.3]} 42... Nxd5 {[%clk
0:00:04.6]} 43. Rh8+ {[%clk 0:00:02.8]} 43... Kg7 {[%clk 0:00:04.7]} 44. Rhg8+
{[%clk 0:00:03.5]} 44... Kh6 {[%clk 0:00:05.4]} 45. Rh8+ {[%clk 0:00:03.7]}
45... Rh7 {[%clk 0:00:06.1]} 46. Rxh7+ {[%clk 0:00:04]} 46... Kxh7 {[%clk
0:00:07]} 47. exd5 {[%clk 0:00:04.5]} 47... Rxd5 {[%clk 0:00:07.9]} 48. Rf7+
{[%clk 0:00:05.2]} 48... Kh6 {[%clk 0:00:08.6]} 49. Rxa7 {[%clk 0:00:06.1]}
49... Rd2 {[%clk 0:00:09.2]} 50. Kg1 {[%clk 0:00:06.5]} 50... Rb2 {[%clk
0:00:09.8]} 51. Ra4 {[%clk 0:00:05.9]} 51... Kg5 {[%clk 0:00:10.3]} 52. Kh1
{[%clk 0:00:05.3]} 52... Kf5 {[%clk 0:00:10.4]} 53. a3 {[%clk 0:00:05.9]} 53...
b5 {[%clk 0:00:10.6]} 54. Ra5 {[%clk 0:00:04.8]} 54... Kg4 {[%clk 0:00:11.1]}
55. Kg1 {[%clk 0:00:02.4]} 55... Kh3 {[%clk 0:00:11.3]} 56. Kf1 {[%clk
0:00:02.2]} 56... Kxh2 {[%clk 0:00:11.4]} 57. g4 {[%clk 0:00:02.6]} 57... Kg3
{[%clk 0:00:11.5]} 58. Ra6 {[%clk 0:00:03]} 58... g5 {[%clk 0:00:11.7]} 59. Ke1
{[%clk 0:00:01.4]} 59... Kxg4 {[%clk 0:00:11.9]} 60. a4 {[%clk 0:00:01.7]} 60...
bxa4 {[%clk 0:00:11.8]} 61. Rxa4+ {[%clk 0:00:02]} 61... Kh3 {[%clk 0:00:12.6]}
62. Kf1 {[%clk 0:00:01.6]} 62... g4 {[%clk 0:00:12.4]} 0-1

[Event "Late-Titled-Tuesday-Blitz-September-05-2023"]
[Site "Chess.com"]
[Date "2023.09.05"]
[Round "2"]
[White "SalihEke"]
[Black "GarayevKanan"]
[Result "1-0"]
[WhiteElo "2493"]
[BlackElo "2706"]
[TimeControl "180+1"]
[EndTime "14:19:12 PDT"]
[Termination "SalihEke won by resignation"]

1. d4 {[%clk 0:03:00.9]} 1... d6 {[%clk 0:02:59.5]} 2. Nf3 {[%clk 0:03:00.5]}
2... d5 {[%clk 0:02:52.4]} 3. Bf4 {[%clk 0:02:57.8]} 3... e6 {[%clk 0:02:51.7]}
4. e3 {[%clk 0:02:56.9]} 4... Bd6 {[%clk 0:02:51.3]} 5. Bg3 {[%clk 0:02:56.6]}
5... Ne7 {[%clk 0:02:50.2]} 6. Nbd2 {[%clk 0:02:57.1]} 6... Nf5 {[%clk
0:02:49.1]} 7. Bd3 {[%clk 0:02:54.7]} 7... Nxg3 {[%clk 0:02:48]} 8. hxg3 {[%clk
0:02:55.6]} 8... g6 {[%clk 0:02:39.3]} 9. e4 {[%clk 0:02:53.9]} 9... dxe4 {[%clk
0:02:35.8]} 10. Nxe4 {[%clk 0:02:54.8]} 10... Be7 {[%clk 0:02:36.1]} 11. c3
{[%clk 0:02:52]} 11... Nd7 {[%clk 0:02:30.5]} 12. Qe2 {[%clk 0:02:45.5]} 12...
Nf6 {[%clk 0:02:30.1]} 13. Rd1 {[%clk 0:02:42.9]} 13... Kf8 {[%clk 0:02:19.4]}
14. O-O {[%clk 0:02:30.7]} 14... Kg7 {[%clk 0:02:18.4]} 15. b4 {[%clk
0:02:25.7]} 15... b6 {[%clk 0:02:16]} 16. a3 {[%clk 0:02:16.3]} 16... Bb7 {[%clk
0:02:15.8]} 17. Rfe1 {[%clk 0:02:13.3]} 17... Nxe4 {[%clk 0:02:12.3]} 18. Bxe4
{[%clk 0:02:13.8]} 18... Bxe4 {[%clk 0:02:13.2]} 19. Qxe4 {[%clk 0:02:14.5]}
19... Bf6 {[%clk 0:02:12.1]} 20. Ne5 {[%clk 0:02:09.2]} 20... Qd5 {[%clk
0:02:02.3]} 21. Qxd5 {[%clk 0:01:47]} 21... exd5 {[%clk 0:02:03.2]} 22. Nc6
{[%clk 0:01:47.6]} 22... Rhe8 {[%clk 0:01:58.3]} 23. Rxe8 {[%clk 0:01:44.3]}
23... Rxe8 {[%clk 0:01:59.2]} 24. Nxa7 {[%clk 0:01:45.1]} 24... Ra8 {[%clk
0:01:58.3]} 25. Nc6 {[%clk 0:01:00.4]} 25... Rxa3 {[%clk 0:01:57.3]} 26. Rc1
{[%clk 0:01:00.3]} 26... Ra2 {[%clk 0:01:54.6]} 27. f4 {[%clk 0:00:54.3]} 27...
Rd2 {[%clk 0:01:48.6]} 28. b5 {[%clk 0:00:49.2]} 28... g5 {[%clk 0:01:40.8]} 29.
Nb4 {[%clk 0:00:38.9]} 29... gxf4 {[%clk 0:01:36.5]} 30. gxf4 {[%clk 0:00:39.4]}
30... Rb2 {[%clk 0:01:23.8]} 31. Nxd5 {[%clk 0:00:38.1]} 31... Rxb5 {[%clk
0:01:21.5]} 32. Nxc7 {[%clk 0:00:36.7]} 32... Rb3 {[%clk 0:01:21.4]} 33. Nd5
{[%clk 0:00:34.1]} 33... Bh4 {[%clk 0:01:17.6]} 34. Kh2 {[%clk 0:00:21.4]} 34...
Kg6 {[%clk 0:01:14.4]} 35. Kh3 {[%clk 0:00:20.6]} 35... Bf2 {[%clk 0:00:14.7]}
36. g3 {[%clk 0:00:10.1]} 36... Kf5 {[%clk 0:00:12.3]} 37. Rc2 {[%clk
0:00:08.2]} 37... Be1 {[%clk 0:00:12.3]} 38. Ne3+ {[%clk 0:00:03.3]} 38... Ke4
{[%clk 0:00:11.7]} 39. Nc4 {[%clk 0:00:03.2]} 39... Kd3 {[%clk 0:00:11.1]} 40.
Rc1 {[%clk 0:00:03.8]} 40... Kxc4 {[%clk 0:00:06.4]} 41. Rxe1 {[%clk 0:00:03.8]}
41... Rxc3 {[%clk 0:00:06.1]} 42. Re7 {[%clk 0:00:03.7]} 42... b5 {[%clk
0:00:06]} 43. Rxf7 {[%clk 0:00:03.5]} 43... b4 {[%clk 0:00:05.5]} 44. Rxh7
{[%clk 0:00:04]} 44... b3 {[%clk 0:00:05.1]} 45. Rb7 {[%clk 0:00:04.7]} 45...
Rc2 {[%clk 0:00:02.6]} 46. f5 {[%clk 0:00:04.9]} 46... b2 {[%clk 0:00:02.3]} 47.
g4 {[%clk 0:00:05.6]} 47... Rf2 {[%clk 0:00:02.7]} 48. Kh4 {[%clk 0:00:05.6]}
48... Kxd4 {[%clk 0:00:03.1]} 49. Kg5 {[%clk 0:00:05.4]} 49... Ke4 {[%clk
0:00:03.1]} 50. Rb4+ {[%clk 0:00:04.1]} 50... Kd3 {[%clk 0:00:03.3]} 51. Kf6
{[%clk 0:00:03.5]} 51... Kc3 {[%clk 0:00:03.9]} 52. Rb8 {[%clk 0:00:03.7]} 52...
Kc2 {[%clk 0:00:04.1]} 53. g5 {[%clk 0:00:04.2]} 53... b1=Q {[%clk 0:00:04.4]}
54. Rxb1 {[%clk 0:00:04.9]} 54... Kxb1 {[%clk 0:00:05.3]} 55. g6 {[%clk
0:00:05.6]} 55... Kc2 {[%clk 0:00:05.8]} 56. g7 {[%clk 0:00:06.1]} 56... Rg2
{[%clk 0:00:05.6]} 57. Kf7 {[%clk 0:00:06.4]} 57... Kd3 {[%clk 0:00:06.2]} 58.
g8=Q {[%clk 0:00:06.8]} 58... Rf2 {[%clk 0:00:06.9]} 59. f6 {[%clk 0:00:06.4]}
59... Ke4 {[%clk 0:00:06.5]} 60. Qe8+ {[%clk 0:00:06.4]} 60... Kf5 {[%clk
0:00:06.6]} 61. Qe6+ {[%clk 0:00:07.1]} 61... Kg5 {[%clk 0:00:06.9]} 62. Ke7
{[%clk 0:00:07.5]} 62... Rf4 {[%clk 0:00:06.4]} 63. f7 {[%clk 0:00:08]} 1-0

[Event "Late-Titled-Tuesday-Blitz-September-05-2023"]
[Site "Chess.com"]
[Date "2023.09.05"]
[Round "2"]
[White "JacksterThePro"]
[Black "jk13"]
[Result "1-0"]
[WhiteElo "2426"]
[BlackElo "2663"]
[TimeControl "180+1"]
[EndTime "14:19:17 PDT"]
[Termination "JacksterThePro won by resignation"]

1. d4 {[%clk 0:03:00.9]} 1... Nf6 {[%clk 0:02:58.6]} 2. c4 {[%clk 0:03:01.4]}
2... e6 {[%clk 0:02:58.4]} 3. Nc3 {[%clk 0:03:01.6]} 3... Bb4 {[%clk 0:02:58.9]}
4. f3 {[%clk 0:03:01.8]} 4... c5 {[%clk 0:02:58.5]} 5. d5 {[%clk 0:03:01.2]}
5... b5 {[%clk 0:02:57.7]} 6. e4 {[%clk 0:02:53.2]} 6... d6 {[%clk 0:02:57.2]}
7. Ne2 {[%clk 0:02:50.8]} 7... bxc4 {[%clk 0:02:55.7]} 8. Nf4 {[%clk 0:02:50.9]}
8... e5 {[%clk 0:02:46.7]} 9. Ne2 {[%clk 0:02:50.8]} 9... Nbd7 {[%clk
0:02:45.3]} 10. Ng3 {[%clk 0:02:51.3]} 10... Nb6 {[%clk 0:02:45.4]} 11. Be2
{[%clk 0:02:51.2]} 11... O-O {[%clk 0:02:41.2]} 12. O-O {[%clk 0:02:49.6]} 12...
Ne8 {[%clk 0:02:35]} 13. f4 {[%clk 0:02:46.7]} 13... exf4 {[%clk 0:02:29.8]} 14.
Bxf4 {[%clk 0:02:47.6]} 14... h6 {[%clk 0:02:23.9]} 15. Bg4 {[%clk 0:02:33.8]}
15... Bxg4 {[%clk 0:02:17.4]} 16. Qxg4 {[%clk 0:02:32.6]} 16... Nf6 {[%clk
0:02:18.3]} 17. Qf3 {[%clk 0:02:18.8]} 17... Bxc3 {[%clk 0:02:14.5]} 18. bxc3
{[%clk 0:02:17.7]} 18... Re8 {[%clk 0:01:31.4]} 19. Rae1 {[%clk 0:02:08.5]}
19... Nbd7 {[%clk 0:01:25]} 20. Nf5 {[%clk 0:02:02.5]} 20... Ne5 {[%clk
0:01:17.2]} 21. Qe3 {[%clk 0:01:23.8]} 21... Kh7 {[%clk 0:00:33.2]} 22. h3
{[%clk 0:01:05.2]} 22... Ng8 {[%clk 0:00:31.2]} 23. Qg3 {[%clk 0:01:03.3]} 23...
g6 {[%clk 0:00:28.5]} 24. Nxd6 {[%clk 0:00:33.7]} 24... Qxd6 {[%clk 0:00:28.5]}
25. Bxe5 {[%clk 0:00:33.7]} 25... Rxe5 {[%clk 0:00:25.4]} 26. Rxf7+ {[%clk
0:00:34.1]} 26... Kh8 {[%clk 0:00:25.9]} 27. Ref1 {[%clk 0:00:33.7]} 27... Rae8
{[%clk 0:00:23.2]} 28. R1f6 {[%clk 0:00:28.9]} 28... Qxf6 {[%clk 0:00:15.4]} 29.
Rxf6 {[%clk 0:00:28.5]} 29... Nxf6 {[%clk 0:00:16.3]} 30. Qxg6 {[%clk
0:00:28.2]} 30... Ng8 {[%clk 0:00:16.5]} 31. d6 {[%clk 0:00:23.9]} 31... R8e6
{[%clk 0:00:14.7]} 32. Qg3 {[%clk 0:00:15]} 32... Rxe4 {[%clk 0:00:14]} 33. d7
{[%clk 0:00:14.2]} 33... Re1+ {[%clk 0:00:14.7]} 34. Kh2 {[%clk 0:00:09.2]}
34... Rd1 {[%clk 0:00:15.6]} 35. Qg4 {[%clk 0:00:05.7]} 35... Red6 {[%clk
0:00:15.4]} 36. Qxc4 {[%clk 0:00:04.8]} 36... R1d5 {[%clk 0:00:15.3]} 37. Qf4
{[%clk 0:00:03]} 37... Rxd7 {[%clk 0:00:15.4]} 38. c4 {[%clk 0:00:03.3]} 38...
R5d6 {[%clk 0:00:15.4]} 39. Qe5+ {[%clk 0:00:03.4]} 39... Kh7 {[%clk 0:00:15]}
40. Qxc5 {[%clk 0:00:04.3]} 40... Rd4 {[%clk 0:00:15]} 41. Qf5+ {[%clk
0:00:04.3]} 41... Kg7 {[%clk 0:00:15]} 42. c5 {[%clk 0:00:05.2]} 42... R4d5
{[%clk 0:00:14.8]} 43. Qg4+ {[%clk 0:00:04.9]} 43... Kf7 {[%clk 0:00:13.8]} 44.
c6 {[%clk 0:00:05.8]} 44... Re7 {[%clk 0:00:14.1]} 45. Qc4 {[%clk 0:00:05.3]}
45... Ke6 {[%clk 0:00:14.2]} 46. c7 {[%clk 0:00:05]} 46... Rxc7 {[%clk
0:00:14.5]} 47. Qxc7 {[%clk 0:00:04.3]} 47... a5 {[%clk 0:00:15.4]} 48. Qc8+
{[%clk 0:00:04.5]} 48... Kf7 {[%clk 0:00:15.4]} 49. Qb7+ {[%clk 0:00:05]} 49...
Ke6 {[%clk 0:00:15.4]} 50. Qa6+ {[%clk 0:00:04.9]} 50... Ke5 {[%clk 0:00:14.4]}
51. Qa8 {[%clk 0:00:04.5]} 51... Nf6 {[%clk 0:00:15.3]} 52. Qb8+ {[%clk
0:00:03.6]} 52... Ke6 {[%clk 0:00:15.5]} 53. Qb6+ {[%clk 0:00:03.8]} 53... Ke5
{[%clk 0:00:15.9]} 54. Qe3+ {[%clk 0:00:04.4]} 54... Kd6 {[%clk 0:00:15.7]} 55.
Qxh6 {[%clk 0:00:04.9]} 55... Rf5 {[%clk 0:00:16.1]} 56. Qd2+ {[%clk 0:00:04.8]}
56... Ke6 {[%clk 0:00:16.6]} 57. Qc2 {[%clk 0:00:04.8]} 57... Re5 {[%clk
0:00:16.5]} 58. Qb3+ {[%clk 0:00:05.2]} 58... Kf5 {[%clk 0:00:16.6]} 59. Qb7
{[%clk 0:00:05.4]} 59... Ne4 {[%clk 0:00:16.7]} 60. Qf7+ {[%clk 0:00:05.3]}
60... Kg5 {[%clk 0:00:16.9]} 61. g3 {[%clk 0:00:05.6]} 61... Nf6 {[%clk
0:00:16.8]} 62. h4+ {[%clk 0:00:05.9]} 62... Kf5 {[%clk 0:00:17.1]} 63. Qc7
{[%clk 0:00:05]} 63... Re2+ {[%clk 0:00:17.2]} 64. Kg1 {[%clk 0:00:05.4]} 64...
Re4 {[%clk 0:00:16.9]} 65. Qc5+ {[%clk 0:00:05.2]} 65... Re5 {[%clk 0:00:17.7]}
66. Qf2+ {[%clk 0:00:05.4]} 66... Ke6 {[%clk 0:00:18]} 67. Qb2 {[%clk
0:00:05.7]} 67... Ne4 {[%clk 0:00:18.9]} 68. Qb3+ {[%clk 0:00:05.7]} 68... Kf5
{[%clk 0:00:19.2]} 69. Kg2 {[%clk 0:00:05.7]} 69... Nd6 {[%clk 0:00:19.1]} 70.
Qf3+ {[%clk 0:00:05.8]} 70... Ke6 {[%clk 0:00:19.4]} 71. Qc6 {[%clk 0:00:06.2]}
71... Re4 {[%clk 0:00:19.3]} 72. h5 {[%clk 0:00:05.4]} 72... Re2+ {[%clk
0:00:19.9]} 73. Kf3 {[%clk 0:00:05.2]} 73... Re5 {[%clk 0:00:20.7]} 74. h6
{[%clk 0:00:04.9]} 74... Ke7 {[%clk 0:00:21.2]} 75. Qc7+ {[%clk 0:00:04.3]}
75... Ke6 {[%clk 0:00:20.7]} 76. h7 {[%clk 0:00:04.9]} 76... Rh5 {[%clk
0:00:20.9]} 77. Qg7 {[%clk 0:00:04.1]} 77... Nf7 {[%clk 0:00:21.1]} 78. Qg6+
{[%clk 0:00:04.1]} 78... Ke7 {[%clk 0:00:20.9]} 79. Qxh5 {[%clk 0:00:04.2]}
79... Kf6 {[%clk 0:00:21.3]} 80. Qxf7+ {[%clk 0:00:03.9]} 1-0

[Event "Late-Titled-Tuesday-Blitz-September-05-2023"]
[Site "Chess.com"]
[Date "2023.09.05"]
[Round "2"]
[White "as9killer2"]
[Black "traack"]
[Result "0-1"]
[WhiteElo "2642"]
[BlackElo "2371"]
[TimeControl "180+1"]
[EndTime "14:19:38 PDT"]
[Termination "traack won by checkmate"]

1. c4 {[%clk 0:03:00.9]} 1... Nf6 {[%clk 0:02:58.1]} 2. Nc3 {[%clk 0:03:00.7]}
2... e6 {[%clk 0:02:58.3]} 3. e4 {[%clk 0:02:59.6]} 3... c5 {[%clk 0:02:55.8]}
4. Nf3 {[%clk 0:02:59.2]} 4... Nc6 {[%clk 0:02:54.4]} 5. Be2 {[%clk 0:02:59.5]}
5... Be7 {[%clk 0:02:50.6]} 6. O-O {[%clk 0:02:58.7]} 6... O-O {[%clk
0:02:51.2]} 7. d4 {[%clk 0:02:54.7]} 7... cxd4 {[%clk 0:02:51.5]} 8. Nxd4 {[%clk
0:02:54.4]} 8... a6 {[%clk 0:02:51.6]} 9. Nxc6 {[%clk 0:02:53.1]} 9... bxc6
{[%clk 0:02:50.9]} 10. e5 {[%clk 0:02:53.3]} 10... Ne8 {[%clk 0:02:49.5]} 11.
Ne4 {[%clk 0:02:50.4]} 11... d5 {[%clk 0:02:46.2]} 12. exd6 {[%clk 0:02:49.8]}
12... Nxd6 {[%clk 0:02:45.6]} 13. Bd3 {[%clk 0:02:47.8]} 13... Nxe4 {[%clk
0:02:32]} 14. Bxe4 {[%clk 0:02:47.6]} 14... Qc7 {[%clk 0:02:32.9]} 15. Qh5
{[%clk 0:02:39.7]} 15... g6 {[%clk 0:02:29]} 16. Qf3 {[%clk 0:02:32.5]} 16...
Bb7 {[%clk 0:02:27.2]} 17. b3 {[%clk 0:02:24.5]} 17... f5 {[%clk 0:02:25.6]} 18.
Bc2 {[%clk 0:02:21.7]} 18... c5 {[%clk 0:02:25.5]} 19. Qe2 {[%clk 0:02:16.1]}
19... Qc6 {[%clk 0:02:15.5]} 20. f3 {[%clk 0:02:15.8]} 20... Bf6 {[%clk
0:02:15.2]} 21. Rb1 {[%clk 0:02:14.4]} 21... Bd4+ {[%clk 0:02:11.1]} 22. Kh1
{[%clk 0:02:14.6]} 22... e5 {[%clk 0:02:09]} 23. b4 {[%clk 0:02:12.6]} 23...
cxb4 {[%clk 0:02:05]} 24. Rxb4 {[%clk 0:02:12.3]} 24... a5 {[%clk 0:02:05.1]}
25. Ba4 {[%clk 0:02:10.7]} 25... Qc7 {[%clk 0:01:56.7]} 26. Rb3 {[%clk
0:02:05.4]} 26... Ba6 {[%clk 0:01:54.2]} 27. Bb5 {[%clk 0:02:03.9]} 27... Bb7
{[%clk 0:01:33.6]} 28. Ba3 {[%clk 0:01:54.1]} 28... Rfc8 {[%clk 0:01:31.2]} 29.
c5 {[%clk 0:01:54.2]} 29... Bc6 {[%clk 0:01:24.6]} 30. Bc4+ {[%clk 0:01:42.9]}
30... Kg7 {[%clk 0:01:22.9]} 31. Rfb1 {[%clk 0:01:35.9]} 31... Rcb8 {[%clk
0:01:20.6]} 32. Rb6 {[%clk 0:01:35.5]} 32... Rxb6 {[%clk 0:01:09.3]} 33. cxb6
{[%clk 0:01:35.1]} 33... Qb7 {[%clk 0:00:53.8]} 34. Bd6 {[%clk 0:01:30.8]} 34...
Re8 {[%clk 0:00:53.1]} 35. Ba6 {[%clk 0:01:29.6]} 35... Qd7 {[%clk 0:00:40.8]}
36. Ba3 {[%clk 0:01:21.3]} 36... e4 {[%clk 0:00:40.2]} 37. fxe4 {[%clk
0:01:12.7]} 37... Rxe4 {[%clk 0:00:38.8]} 38. Qd2 {[%clk 0:00:34.6]} 38... Rg4
{[%clk 0:00:27]} 39. Bf1 {[%clk 0:00:34.3]} 39... Qb7 {[%clk 0:00:24.7]} 40. Bb2
{[%clk 0:00:28.5]} 40... Bxb2 {[%clk 0:00:18.2]} 41. Rxb2 {[%clk 0:00:29.4]}
41... a4 {[%clk 0:00:16]} 42. Qd6 {[%clk 0:00:29.4]} 42... Re4 {[%clk
0:00:12.7]} 43. Qc7+ {[%clk 0:00:29.1]} 43... Re7 {[%clk 0:00:12.6]} 44. Qf4
{[%clk 0:00:28.1]} 44... Be4 {[%clk 0:00:12.4]} 45. Qd2 {[%clk 0:00:25.4]} 45...
Re6 {[%clk 0:00:12.7]} 46. Qd4+ {[%clk 0:00:25.6]} 46... Kh6 {[%clk 0:00:12.5]}
47. Rb4 {[%clk 0:00:21.5]} 47... Rc6 {[%clk 0:00:09.9]} 48. Qe3+ {[%clk
0:00:17]} 48... Kg7 {[%clk 0:00:10.4]} 49. Rxe4 {[%clk 0:00:17.4]} 49... fxe4
{[%clk 0:00:10.1]} 50. Qxe4 {[%clk 0:00:18.3]} 50... Rxb6 {[%clk 0:00:09.7]} 51.
Qe5+ {[%clk 0:00:18.9]} 51... Rf6 {[%clk 0:00:09.6]} 52. h3 {[%clk 0:00:18.6]}
52... Qf7 {[%clk 0:00:09.5]} 53. Be2 {[%clk 0:00:18]} 53... Kg8 {[%clk
0:00:09.8]} 54. Bf3 {[%clk 0:00:18.2]} 54... Re6 {[%clk 0:00:10.2]} 55. Qb8+
{[%clk 0:00:17.7]} 55... Re8 {[%clk 0:00:10.4]} 56. Qb4 {[%clk 0:00:17]} 56...
Qd7 {[%clk 0:00:09.8]} 57. Qc4+ {[%clk 0:00:16.3]} 57... Kg7 {[%clk 0:00:08.8]}
58. Bd5 {[%clk 0:00:16.7]} 58... Qd6 {[%clk 0:00:08.8]} 59. Qd4+ {[%clk
0:00:17.1]} 59... Qf6 {[%clk 0:00:07.6]} 60. Qc5 {[%clk 0:00:17.1]} 60... Re1+
{[%clk 0:00:08.1]} 61. Kh2 {[%clk 0:00:17.4]} 61... Qe5+ {[%clk 0:00:08.9]} 62.
g3 {[%clk 0:00:17.2]} 62... Qe2+ {[%clk 0:00:09]} 63. Bg2 {[%clk 0:00:16.1]}
63... Qe7 {[%clk 0:00:09.9]} 64. Qc3+ {[%clk 0:00:15.7]} 64... Kg8 {[%clk
0:00:09.5]} 65. Bd5+ {[%clk 0:00:14.7]} 65... Re6 {[%clk 0:00:05.5]} 66. Qe5
{[%clk 0:00:14.9]} 66... Kf7 {[%clk 0:00:05.3]} 67. Qxe6+ {[%clk 0:00:15.5]}
67... Qxe6 {[%clk 0:00:05.5]} 68. Bxe6+ {[%clk 0:00:16.4]} 68... Kxe6 {[%clk
0:00:06.3]} 69. Kg2 {[%clk 0:00:17.1]} 69... Kd5 {[%clk 0:00:07.2]} 70. Kf3
{[%clk 0:00:17.9]} 70... Kc4 {[%clk 0:00:08.1]} 71. Ke3 {[%clk 0:00:18.1]} 71...
Kc3 {[%clk 0:00:08.7]} 72. g4 {[%clk 0:00:18.1]} 72... Kb2 {[%clk 0:00:09.6]}
73. Kd2 {[%clk 0:00:18.3]} 73... Kxa2 {[%clk 0:00:10]} 74. Kc2 {[%clk
0:00:18.8]} 74... g5 {[%clk 0:00:10.5]} 75. Kc1 {[%clk 0:00:18]} 75... Kb3
{[%clk 0:00:10.5]} 76. Kb1 {[%clk 0:00:18.6]} 76... a3 {[%clk 0:00:11.4]} 77.
Ka1 {[%clk 0:00:18.8]} 77... Kc3 {[%clk 0:00:10.3]} 78. Ka2 {[%clk 0:00:19.5]}
78... Kd3 {[%clk 0:00:11.2]} 79. Kxa3 {[%clk 0:00:20.2]} 79... Ke3 {[%clk
0:00:12.1]} 80. Kb3 {[%clk 0:00:20.9]} 80... Kf3 {[%clk 0:00:12.7]} 81. Kc3
{[%clk 0:00:21.8]} 81... Kg3 {[%clk 0:00:13.2]} 82. Kd3 {[%clk 0:00:22.7]} 82...
Kxh3 {[%clk 0:00:13.8]} 83. Ke2 {[%clk 0:00:23.4]} 83... Kxg4 {[%clk 0:00:14.7]}
84. Kf2 {[%clk 0:00:24.2]} 84... h5 {[%clk 0:00:15.4]} 85. Kg2 {[%clk
0:00:25.1]} 85... h4 {[%clk 0:00:16.3]} 86. Kh2 {[%clk 0:00:25.7]} 86... Kh5
{[%clk 0:00:17.2]} 87. Kg2 {[%clk 0:00:26.4]} 87... g4 {[%clk 0:00:18.1]} 88.
Kh2 {[%clk 0:00:27.1]} 88... Kg5 {[%clk 0:00:19]} 89. Kg2 {[%clk 0:00:27.8]}
89... Kf4 {[%clk 0:00:19.9]} 90. Kh2 {[%clk 0:00:28.7]} 90... h3 {[%clk
0:00:20.5]} 91. Kg1 {[%clk 0:00:28.9]} 91... Kg3 {[%clk 0:00:20.9]} 92. Kh1
{[%clk 0:00:29.6]} 92... Kh4 {[%clk 0:00:21.3]} 93. Kg1 {[%clk 0:00:30.5]} 93...
g3 {[%clk 0:00:22.1]} 94. Kh1 {[%clk 0:00:31.1]} 94... Kg4 {[%clk 0:00:23]} 95.
Kg1 {[%clk 0:00:32]} 95... Kf3 {[%clk 0:00:21.1]} 96. Kh1 {[%clk 0:00:32.9]}
96... g2+ {[%clk 0:00:21.5]} 97. Kh2 {[%clk 0:00:33.2]} 97... Kf2 {[%clk
0:00:22]} 98. Kxh3 {[%clk 0:00:34]} 98... g1=Q {[%clk 0:00:22.9]} 99. Kh4 {[%clk
0:00:34.8]} 99... Kf3 {[%clk 0:00:23.2]} 100. Kh5 {[%clk 0:00:35.7]} 100... Kf4
{[%clk 0:00:24.1]} 101. Kh6 {[%clk 0:00:36.3]} 101... Kf5 {[%clk 0:00:25]} 102.
Kh7 {[%clk 0:00:37.1]} 102... Kf6 {[%clk 0:00:25.9]} 103. Kh8 {[%clk 0:00:38]}
103... Kf7 {[%clk 0:00:26.2]} 104. Kh7 {[%clk 0:00:38.9]} 104... Qh1# {[%clk
0:00:26]} 0-1